fUST/lending_fUST_20251212
["ID","MTS","AMOUNT","RATE_DAILY","PERIOD"]
[398291112,1765497045828,-500.0,0.00010458,2]
[398291114,1765497045838,-500.0,0.00010458,2]
[398291116,1765497045847,-336.62701674,0.00010458,2]
[398291118,1765497045856,-151.38,0.000105,2]
[398291120,1765497045866,-2000.0,0.0001051,2]
[398291122,1765497045875,-300.0,0.0001072,2]
[398291124,1765497045885,-300.0,0.0001072,2]
[398291125,1765497045894,-300.0,0.0001072,2]
[398291126,1765497045903,-300.0,0.0001072,2]
[398291127,1765497045912,-300.0,0.0001072,2]
[398291128,1765497045922,-300.0,0.0001072,2]
[398291129,1765497045934,-300.0,0.0001072,2]
[398291130,1765497045943,-300.0,0.0001072,2]
[398291131,1765497045952,-300.0,0.0001072,2]
[398291132,1765497045962,-300.0,0.0001072,2]
[398291133,1765497045973,-300.0,0.0001072,2]
[398291134,1765497045983,-300.0,0.0001072,2]
[398291135,1765497045993,-300.0,0.0001072,2]
[398291136,1765497046003,-300.0,0.0001072,2]
[398291137,1765497046012,-300.0,0.0001072,2]
[398291138,1765497046021,-500.0,0.0001072,2]
[398291139,1765497046031,-151.0,0.0001072,2]
[398291140,1765497046040,-151.0,0.0001072,2]
[398291141,1765497046050,-500.0,0.0001072,2]
[398291142,1765497046059,-153.15888631,0.0001072,2]
[398291143,1765497046068,-151.0,0.0001072,2]
[398291144,1765497046078,-500.0,0.0001072,2]
[398291145,1765497046087,-600.0,0.00010768,2]
[398291146,1765497046096,-397.27461178,0.00010791,2]
[398291147,1765497046105,-348.33877543,0.00010795,2]
[398291148,1765497046117,-71.66122457,0.00010795,2]
[398291149,1765497046127,-500.0,0.00010857,2]
[398291150,1765497046136,-151.0,0.00010857,2]
[398291151,1765497046145,-151.0,0.00010857,2]
[398291152,1765497046155,-500.94323605,0.00010857,2]
[398291153,1765497046164,-151.0,0.00010857,2]
[398291154,1765497046173,-552.29911972,0.00010857,2]
[398291155,1765497046184,-3935.94506004,0.00010913,2]
[398291156,1765497046194,-285.54451449,0.00010958,2]
[398291157,1765497046204,-482.34610463,0.00010958,2]
[398291158,1765497046214,-965.2770871,0.00010959,2]
[398291159,1765497046223,-999.0,0.00010959,2]
[398291160,1765497046232,-5633.0489309,0.00010959,2]
[398291161,1765497046242,-500.0,0.00010959,2]
[398291162,1765497046252,-151.0,0.00010959,2]
[398291163,1765497046261,-151.0,0.00010959,2]
[398291164,1765497046271,-151.0,0.00010959,2]
[398291165,1765497046281,-151.0,0.00010959,2]
[398291166,1765497046290,-151.0,0.00010959,2]
[398291167,1765497046299,-151.0,0.00010959,2]
[398291168,1765497046309,-151.0,0.00010959,2]
[398291169,1765497046318,-151.0,0.00010959,2]
[398291170,1765497046328,-151.0,0.00010959,2]
[398291171,1765497046337,-151.0,0.00010959,2]
[398291172,1765497046346,-151.0,0.00010959,2]
[398291173,1765497046355,-151.0,0.00010959,2]
[398291174,1765497046365,-295.731053,0.00010959,2]
[398291175,1765497046374,-295.731053,0.00010959,2]
[398291176,1765497046384,-295.731053,0.00010959,2]
[398291177,1765497046393,-295.731053,0.00010959,2]
[398291178,1765497046403,-295.731053,0.00010959,2]
[398291179,1765497046412,-295.731053,0.00010959,2]
[398291180,1765497046421,-295.731053,0.00010959,2]
[398291181,1765497046431,-295.731053,0.00010959,2]
[398291182,1765497046440,-295.731053,0.00010959,2]
[398291183,1765497046450,-295.731053,0.00010959,2]
[398291184,1765497046459,-295.731053,0.00010959,2]
[398291185,1765497046469,-295.731053,0.00010959,2]
[398291186,1765497046478,-535.00305,0.00010959,2]
[398291187,1765497046487,-535.00305,0.00010959,2]
[398291188,1765497046496,-535.00305,0.00010959,2]
[398291189,1765497046505,-535.00305,0.00010959,2]
[398291190,1765497046514,-535.00305,0.00010959,2]
[398291191,1765497046523,-535.00305,0.00010959,2]
[398291192,1765497046534,-535.00305,0.00010959,2]
[398291193,1765497046543,-535.00305,0.00010959,2]
[398291194,1765497046552,-535.00305,0.00010959,2]
[398291195,1765497046561,-535.00305,0.00010959,2]
[398291196,1765497046570,-535.00305,0.00010959,2]
[398291197,1765497046579,-535.00305,0.00010959,2]
[398291198,1765497046588,-151.0,0.00010959,2]
[398291199,1765497046598,-151.0,0.00010959,2]
[398291200,1765497046607,-151.0,0.00010959,2]
[398291201,1765497046616,-151.0,0.00010959,2]
[398291202,1765497046625,-151.0,0.00010959,2]
[398291203,1765497046635,-151.0,0.00010959,2]
[398291204,1765497046644,-151.0,0.00010959,2]
[398291205,1765497046653,-224.799139,0.00010959,2]
[398291206,1765497046662,-284.43,0.00010959,2]
[398291207,1765497046672,-500.0,0.00010959,2]
[398291208,1765497046681,-500.0,0.00010959,2]
[398291209,1765497046690,-500.0,0.00010959,2]
[398291210,1765497046699,-500.0,0.00010959,2]
[398291211,1765497046708,-500.0,0.00010959,2]
[398291212,1765497046717,-500.0,0.00010959,2]
[398291213,1765497046731,-500.0,0.00010959,2]
[398291214,1765497046739,-475.3119675,0.00010959,2]
[398291215,1765497081012,150.0,7.138e-05,2]
[398291216,1765497081683,150.0,7.787e-05,2]
[398291217,1765497081880,150.0,8.436e-05,2]
[398291218,1765497154249,150.0,7.153e-05,2]
[398291219,1765497154650,150.0,7.803e-05,2]
[398291220,1765497155088,150.0,8.453e-05,2]
[398291221,1765497224039,150.0,7.164e-05,2]
[398291222,1765497224448,150.0,7.816e-05,2]
[398291223,1765497224858,150.0,8.467e-05,2]
[398291224,1765497292891,150.0,7.159e-05,2]
[398291225,1765497293300,150.0,7.81e-05,2]
[398291226,1765497293951,150.0,8.461e-05,2]
[398291227,1765497359352,150.0,7.159e-05,2]
[398291228,1765497359747,150.0,7.81e-05,2]
[398291306,1765498237969,-543.0,8.791e-05,2]
[398291308,1765498237978,-183.27,8.791e-05,2]
[398291310,1765498237987,-341.23541171,8.795e-05,2]
[398291312,1765498237996,-300.0,8.799e-05,2]
[398291314,1765498238006,-5712.26820566,8.8e-05,2]
[398291316,1765498238017,-7136.90947374,8.8e-05,2]
[398291317,1765498238027,-151.38,8.8e-05,2]
[398291318,1765498238036,-300.0,8.975e-05,2]
[398291320,1765498238046,-300.0,8.975e-05,2]
[398291322,1765498238055,-300.0,8.975e-05,2]
[398291324,1765498238064,-300.0,8.975e-05,2]
[398291326,1765498238074,-300.0,8.975e-05,2]
[398291328,1765498238083,-300.0,8.975e-05,2]
[398291329,1765498238093,-300.0,8.975e-05,2]
[398291331,1765498238102,-300.0,8.975e-05,2]
[398291333,1765498238112,-300.0,8.975e-05,2]
[398291334,1765498238122,-300.0,8.975e-05,2]
[398291335,1765498238132,-300.0,8.975e-05,2]
[398291336,1765498238141,-300.0,8.975e-05,2]
[398291337,1765498238151,-300.0,8.975e-05,2]
[398291338,1765498238160,-300.0,8.975e-05,2]
[398291340,1765498238169,-300.0,8.975e-05,2]
[398291341,1765498238179,-4676.73692172,8.975e-05,2]
[398291343,1765498238188,-600.0,9.153e-05,2]
[398291344,1765498238197,-151.38,9.5e-05,2]
[398291346,1765498238208,-420.0,9.679e-05,2]
[398291349,1765498238219,-720.0,0.00010069,2]
[398291351,1765498238229,-151.38,0.000103,2]
[398291352,1765498238239,-384.09484368,0.00010321,2]
[398291355,1765498238248,-587.0,0.00010647,2]
[398291356,1765498238258,-331.37947184,0.00010699,2]
[398291358,1765498238268,-1326.10447789,0.0001074,2]
[398291360,1765498238277,-443.19200535,0.00010758,2]
[398291362,1765498238287,-500.0,0.00010758,2]
[398291363,1765498238296,-446.22469538,0.00010758,2]
[398291364,1765498238306,-12069.4061766,0.00010759,2]
[398291365,1765498238722,-4789.58329938,0.00010759,2]
[398291369,1765498240114,-467.93,0.00010759,2]
[398291679,1765498245884,-678.01350082,0.00010759,2]
[398291680,1765498245942,-314753.6837775,0.00010759,2]
[398291681,1765498245952,-402.65778582,0.00010795,2]
[398291682,1765498245962,-151.0,0.00010852,2]
[398291683,1765498245972,-2000.0,0.00010958,2]
[398291684,1765498245982,-500.0,0.00010959,2]
[398291685,1765498245991,-999.0,0.00010959,2]
[398291686,1765498246001,-500.0,0.00010959,2]
[398291687,1765498246010,-18069.1479762,0.00010959,2]
[398291688,1765498246020,-151.0,0.00010959,2]
[398291689,1765498246029,-151.0,0.00010959,2]
[398291690,1765498246039,-151.0,0.00010959,2]
[398291691,1765498246049,-151.0,0.00010959,2]
[398291692,1765498246059,-262.138631,0.00010959,2]
[398291693,1765498246069,-286.0,0.00010959,2]
[398291694,1765498246079,-272.26217732,0.00010959,2]
[398291695,1765498246088,-500.0,0.00010959,2]
[398291696,1765498246097,-151.0,0.00010959,2]
[398291697,1765498246106,-151.0,0.00010959,2]
[398291698,1765498246116,-151.0,0.00010959,2]
[398291699,1765498246126,-151.0,0.00010959,2]
[398291700,1765498246135,-151.0,0.00010959,2]
[398291701,1765498246145,-151.0,0.00010959,2]
[398291702,1765498246155,-151.0,0.00010959,2]
[398291703,1765498246165,-151.0,0.00010959,2]
[398291705,1765498246175,-151.0,0.00010959,2]
[398291708,1765498246185,-189.62,0.00010959,2]
[398291709,1765498246195,-214.00122,0.00010959,2]
[398291710,1765498246204,-214.00122,0.00010959,2]
[398291711,1765498246214,-214.00122,0.00010959,2]
[398291712,1765498246223,-214.00122,0.00010959,2]
[398291713,1765498246232,-214.00122,0.00010959,2]
[398291714,1765498246242,-214.00122,0.00010959,2]
[398291715,1765498246251,-214.00122,0.00010959,2]
[398291716,1765498246260,-214.00122,0.00010959,2]
[398291717,1765498246270,-214.00122,0.00010959,2]
[398291718,1765498246279,-214.00122,0.00010959,2]
[398291719,1765498246289,-214.00122,0.00010959,2]
[398291720,1765498246299,-214.00122,0.00010959,2]
[398291721,1765498246308,-151.0,0.00010959,2]
[398291722,1765498246318,-235.60723907,0.00010959,2]
[398291723,1765498246328,-424.09303033,0.00010959,2]
[398291724,1765498246338,-753.94316503,0.00010959,2]
[398291725,1765498246347,-1176.85815917,0.00010959,2]
[398291726,1765498246357,-598.79432137,0.00010959,2]
[398291727,1765498246366,-598.79432137,0.00010959,2]
[398291728,1765498246376,-598.79432137,0.00010959,2]
[398291729,1765498246385,-598.79432137,0.00010959,2]
[398291730,1765498246395,-598.79432137,0.00010959,2]
[398291731,1765498246405,-598.79432137,0.00010959,2]
[398291732,1765498246415,-598.79432137,0.00010959,2]
[398291733,1765498246424,-598.79432137,0.00010959,2]
[398291734,1765498246435,-598.79432137,0.00010959,2]
[398291735,1765498246448,-598.79432137,0.00010959,2]
[398291736,1765498246458,-598.79432137,0.00010959,2]
[398291737,1765498246467,-588.44027533,0.00010959,2]
[398291738,1765498246555,-10.35404604,0.00010959,2]
[398291739,1765498246565,-598.79432137,0.00010959,2]
[398291740,1765498246575,-598.79432137,0.00010959,2]
[398291741,1765498246585,-598.79432137,0.00010959,2]
[398291742,1765498246595,-598.79432137,0.00010959,2]
[398291743,1765498246605,-598.79432137,0.00010959,2]
[398291744,1765498246615,-598.79432137,0.00010959,2]
[398291745,1765498246624,-598.79432137,0.00010959,2]
[398291746,1765498246634,-595.61318407,0.00010959,2]
[398291747,1765498246643,-595.61318407,0.00010959,2]
[398291748,1765498246653,-595.61318407,0.00010959,2]
[398291749,1765498246663,-595.61318407,0.00010959,2]
[398291750,1765498246673,-595.61318407,0.00010959,2]
[398291751,1765498246682,-595.61318407,0.00010959,2]
[398291752,1765498246692,-595.61318407,0.00010959,2]
[398291753,1765498246702,-595.61318407,0.00010959,2]
[398291754,1765498246712,-272.77090568,0.00010959,2]
[398291755,1765498265688,150.0,6.825e-05,2]
[398291756,1765498266067,150.0,7.15e-05,2]
[398291757,1765498266504,150.0,7.475e-05,2]
[398291763,1765499305993,1000.0,0.0001,3]
[398291787,1765499431928,-543.0,8.8e-05,2]
[398291788,1765499431942,-151.38,8.8e-05,2]
[398291789,1765499431951,-326.35647482,8.822e-05,2]
[398291800,1765499437913,-28.47791719,8.822e-05,2]
[398291801,1765499437923,-186.96791666,8.991e-05,2]
[398291802,1765499437938,-72.04095042,8.991e-05,2]
[398291803,1765499437948,-264.16475732,8.991e-05,2]
[398291804,1765499437958,-236.7007025,9.501e-05,2]
[398291805,1765499437967,-161.62083428,9.89e-05,2]
[398291806,1765499437988,-71.56554489,9.89e-05,2]
[398291807,1765499437998,-2000.0,9.999e-05,3]
[398291808,1765499438011,-151.38,0.000101,2]
[398291809,1765499438020,-101.86783721,0.00010221,2]
[398291810,1765499438032,-419.81011556,0.00010221,2]
[398291811,1765499438041,-287.1429445,0.0001041,2]
[398291812,1765499438053,-12.8570555,0.0001041,2]
[398291813,1765499438063,-345.0,0.0001041,2]
[398291814,1765499438072,-23.32859952,0.00010411,2]
[398291815,1765499438090,-163.56750048,0.00010411,2]
[398291816,1765499438101,-336.41297999,0.00010411,2]
[398291817,1765499438111,-114.08790531,0.00010411,2]
[398291818,1765499438122,-483.97961468,0.00010411,2]
[398291819,1765499438133,-933.54601948,0.00010411,2]
[398291820,1765499438142,-384.11921622,0.00010558,2]
[398291821,1765499438151,-198461.46434328,0.00010559,2]
[398291825,1765499440201,-18134.44835206,0.00010559,2]
[398291843,1765499443199,-453.0,0.00010559,2]
[398291845,1765499443210,-1876.50631983,0.00010559,2]
[398291861,1765499446032,-160.0,0.000104,2]
[398291862,1765499446042,-160.0,0.000104,2]
[398291863,1765499446051,-522833.605133,0.00010559,2]
[398291864,1765499446060,-2024.23896768,0.00010577,2]
[398291865,1765499446070,-151.0,0.00010653,2]
[398291866,1765499446079,-633.177,0.00010658,2]
[398291867,1765499446089,-500.0,0.00010658,2]
[398291868,1765499446100,-500.0,0.00010658,2]
[398291869,1765499446111,-500.0,0.00010658,2]
[398291870,1765499446120,-500.0,0.00010658,2]
[398291871,1765499446130,-500.0,0.00010658,2]
[398291872,1765499446140,-500.0,0.00010658,2]
[398291873,1765499446151,-8511.70584507,0.00010677,2]
[398291874,1765499446160,-962.07579768,0.0001074,2]
[398291875,1765499446170,-2000.0,0.000108,2]
[398291876,1765499446180,-2000.0,0.000108,3]
[398291877,1765499446189,-500.0,0.000108,2]
[398291878,1765499446199,-418.70458257,0.00010822,2]
[398291879,1765499446208,-300.0,0.00010871,2]
[398291880,1765499446218,-300.0,0.00010871,2]
[398291881,1765499446227,-300.0,0.00010871,2]
[398291882,1765499446237,-300.0,0.00010871,2]
[398291883,1765499446248,-300.0,0.00010871,2]
[398291884,1765499446258,-300.0,0.00010871,2]
[398291885,1765499446268,-300.0,0.00010871,2]
[398291886,1765499446278,-300.0,0.00010871,2]
[398291887,1765499446288,-300.0,0.00010871,2]
[398291888,1765499446298,-300.0,0.00010871,2]
[398291889,1765499446307,-300.0,0.00010871,2]
[398291890,1765499446317,-300.0,0.00010871,2]
[398291891,1765499446327,-300.0,0.00010871,2]
[398291892,1765499446337,-300.0,0.00010871,2]
[398291893,1765499446346,-300.0,0.00010871,2]
[398291894,1765499446356,-600.0,0.00010871,2]
[398291895,1765499446365,-160.0,0.000109,2]
[398291896,1765499446374,-160.0,0.000109,2]
[398291897,1765499446384,-160.0,0.000109,2]
[398291898,1765499446394,-2000.0,0.00010958,2]
[398291899,1765499446403,-500.0,0.00010959,2]
[398291900,1765499446413,-500.0,0.00010959,2]
[398291901,1765499446422,-31912.8275185,0.00010959,2]
[398291902,1765499446432,-620.0922464,0.00010959,2]
[398291903,1765499446442,-275.15737433,0.00010959,2]
[398291904,1765499446452,-151.0,0.00010959,2]
[398291905,1765499446461,-151.0,0.00010959,2]
[398291906,1765499446470,-151.0,0.00010959,2]
[398291907,1765499446479,-189.63,0.00010959,2]
[398291908,1765499446489,-2538.6873528,0.00010959,2]
[398291909,1765499446498,-3874.0789085,0.00010959,2]
[398291910,1765499446508,-151.0,0.00010959,2]
[398291911,1765499446523,-151.0,0.00010959,2]
[398291912,1765499446533,-151.0,0.00010959,2]
[398291913,1765499446549,-251.848429,0.00010959,2]
[398291914,1765499446567,-166.0,0.00010959,2]
[398291915,1765499446576,-166.0,0.00010959,2]
[398291916,1765499446585,-162.0,0.00010959,2]
[398291917,1765499446594,-152.0,0.00010959,2]
[398291918,1765499446604,-166.0,0.00010959,2]
[398291919,1765499446613,-166.0,0.00010959,2]
[398291920,1765499446623,-162.0,0.00010959,2]
[398291921,1765499446633,-152.0,0.00010959,2]
[398291922,1765499446644,-166.0,0.00010959,2]
[398291923,1765499446654,-166.0,0.00010959,2]
[398291924,1765499446663,-162.0,0.00010959,2]
[398291925,1765499446673,-152.0,0.00010959,2]
[398291926,1765499446682,-172.0,0.00010959,2]
[398291927,1765499446692,-166.0,0.00010959,2]
[398291928,1765499446703,-162.0,0.00010959,2]
[398291929,1765499446712,-152.0,0.00010959,2]
[398291930,1765499446723,-166.0,0.00010959,2]
[398291931,1765499446733,-162.0,0.00010959,2]
[398291932,1765499446743,-152.0,0.00010959,2]
[398291933,1765499446752,-166.0,0.00010959,2]
[398291934,1765499446763,-223.27763291,0.00010959,2]
[398291935,1765499446773,-152.0,0.00010959,2]
[398291936,1765499446784,-166.0,0.00010959,2]
[398291937,1765499446793,-152.0,0.00010959,2]
[398291938,1765499446802,-166.0,0.00010959,2]
[398291939,1765499446811,-152.0,0.00010959,2]
[398291940,1765499446821,-172.0,0.00010959,2]
[398291941,1765499446831,-334.0,0.00010959,2]
[398291942,1765499446840,-334.0,0.00010959,2]
[398291943,1765499446849,-334.0,0.00010959,2]
[398291944,1765499446863,-152.0,0.00010959,2]
[398291945,1765499446873,-334.0,0.00010959,2]
[398291946,1765499446882,-152.0,0.00010959,2]
[398291947,1765499446892,-292.58986536,0.00010959,2]
[398291948,1765499446901,-334.0,0.00010959,2]
[398291949,1765499446910,-152.0,0.00010959,2]
[398291950,1765499446920,-152.0,0.00010959,2]
[398291951,1765499446931,-334.0,0.00010959,2]
[398291952,1765499446942,-152.0,0.00010959,2]
[398291953,1765499446952,-334.0,0.00010959,2]
[398291954,1765499446961,-152.0,0.00010959,2]
[398291955,1765499446970,-334.0,0.00010959,2]
[398291956,1765499446980,-152.0,0.00010959,2]
[398291957,1765499446989,-334.0,0.00010959,2]
[398291958,1765499446998,-152.0,0.00010959,2]
[398291959,1765499447010,-334.0,0.00010959,2]
[398291960,1765499447019,-152.0,0.00010959,2]
[398291961,1765499447028,-334.0,0.00010959,2]
[398291962,1765499447037,-152.0,0.00010959,2]
[398291963,1765499447047,-334.0,0.00010959,2]
[398291964,1765499447056,-152.0,0.00010959,2]
[398291965,1765499447065,-334.0,0.00010959,2]
[398291966,1765499447074,-152.0,0.00010959,2]
[398291967,1765499447084,-334.0,0.00010959,2]
[398291968,1765499447093,-279.78499744,0.00010959,2]
[398291969,1765499447103,-334.0,0.00010959,2]
[398291970,1765499447112,-334.0,0.00010959,2]
[398291971,1765499447122,-152.0,0.00010959,2]
[398291972,1765499447131,-334.0,0.00010959,2]
[398291973,1765499447141,-334.0,0.00010959,2]
[398291974,1765499447150,-152.0,0.00010959,2]
[398291975,1765499447159,-334.0,0.00010959,2]
[398291976,1765499447169,-152.0,0.00010959,2]
[398291977,1765499447179,-334.0,0.00010959,2]
[398291978,1765499447188,-152.0,0.00010959,2]
[398291979,1765499447198,-334.0,0.00010959,2]
[398291980,1765499447207,-152.0,0.00010959,2]
[398291981,1765499447217,-334.0,0.00010959,2]
[398291982,1765499447226,-334.0,0.00010959,2]
[398291983,1765499447237,-334.0,0.00010959,2]
[398291984,1765499447246,-334.0,0.00010959,2]
[398291985,1765499447256,-334.0,0.00010959,2]
[398291986,1765499447265,-334.0,0.00010959,2]
[398291987,1765499447274,-334.0,0.00010959,2]
[398291988,1765499447284,-239.3606225,0.00010959,2]
[398291989,1765499447294,-334.0,0.00010959,2]
[398291990,1765499447303,-151.0,0.00010959,2]
[398291991,1765499447312,-151.0,0.00010959,2]
[398291992,1765499447321,-151.0,0.00010959,2]
[398291993,1765499447330,-151.0,0.00010959,2]
[398291994,1765499447340,-151.0,0.00010959,2]
[398291995,1765499447350,-151.0,0.00010959,2]
[398291996,1765499447657,-202.009755,0.00010959,2]
[398291997,1765499447668,-500.0,0.00010959,2]
[398291998,1765499447677,-151.0,0.00010959,2]
[398291999,1765499447689,-151.0,0.00010959,2]
[398292000,1765499447699,-151.0,0.00010959,2]
[398292001,1765499447710,-151.0,0.00010959,2]
[398292002,1765499447720,-643.9180245,0.00010959,2]
[398292003,1765499447730,-643.9180245,0.00010959,2]
[398292004,1765499447740,-643.9180245,0.00010959,2]
[398292005,1765499447749,-643.9180245,0.00010959,2]
[398292006,1765499447759,-643.9180245,0.00010959,2]
[398292007,1765499447769,-643.9180245,0.00010959,2]
[398292008,1765499447779,-643.9180245,0.00010959,2]
[398292009,1765499447789,-643.9180245,0.00010959,2]
[398292010,1765499447799,-643.9180245,0.00010959,2]
[398292011,1765499447808,-643.9180245,0.00010959,2]
[398292012,1765499447817,-643.9180245,0.00010959,2]
[398292013,1765499447827,-643.9180245,0.00010959,2]
[398292014,1765499447836,-643.9180245,0.00010959,2]
[398292015,1765499447846,-643.9180245,0.00010959,2]
[398292016,1765499447856,-1012.04982813,0.00010959,2]
[398292017,1765499447865,-643.9180245,0.00010959,2]
[398292018,1765499447874,-1012.04982813,0.00010959,2]
[398292019,1765499447884,-643.9180245,0.00010959,2]
[398292020,1765499447894,-1012.04982813,0.00010959,2]
[398292021,1765499447903,-643.9180245,0.00010959,2]
[398292022,1765499447913,-1012.04982813,0.00010959,2]
[398292023,1765499447923,-1012.04982813,0.00010959,2]
[398292024,1765499447937,-1012.04982813,0.00010959,2]
[398292025,1765499447946,-1012.04982813,0.00010959,2]
[398292026,1765499447956,-1012.04982813,0.00010959,2]
[398292027,1765499447966,-1012.04982813,0.00010959,2]
[398292028,1765499447975,-1012.04982813,0.00010959,2]
[398292029,1765499447985,-1012.04982813,0.00010959,2]
[398292030,1765499447994,-1012.04982813,0.00010959,2]
[398292031,1765499448005,-1012.04982813,0.00010959,2]
[398292032,1765499448015,-1012.04982813,0.00010959,2]
[398292033,1765499448024,-1012.04982813,0.00010959,2]
[398292034,1765499448035,-1012.04982813,0.00010959,2]
[398292035,1765499448045,-1012.04982813,0.00010959,2]
[398292036,1765499448055,-1012.04982813,0.00010959,2]
[398292037,1765499448065,-1012.04982813,0.00010959,2]
[398292038,1765499448075,-1012.04982813,0.00010959,2]
[398292039,1765499448084,-1012.04982813,0.00010959,2]
[398292040,1765499448094,-1012.04982813,0.00010959,2]
[398292041,1765499448103,-1012.04982813,0.00010959,2]
[398292042,1765499448112,-1012.04982813,0.00010959,2]
[398292043,1765499448122,-1012.04982813,0.00010959,2]
[398292044,1765499448131,-643.9180245,0.00010959,2]
[398292045,1765499448140,-1012.04982813,0.00010959,2]
[398292046,1765499448149,-1012.04982813,0.00010959,2]
[398292047,1765499448158,-1012.04982813,0.00010959,2]
[398292048,1765499448168,-1012.04982813,0.00010959,2]
[398292049,1765499448177,-1012.04982813,0.00010959,2]
[398292050,1765499448186,-1012.04982813,0.00010959,2]
[398292051,1765499448198,-1012.04982813,0.00010959,2]
[398292052,1765499448207,-1012.04982813,0.00010959,2]
[398292053,1765499448217,-643.9180245,0.00010959,2]
[398292054,1765499448226,-1012.04982813,0.00010959,2]
[398292055,1765499448235,-1012.04982813,0.00010959,2]
[398292056,1765499448245,-1012.04982813,0.00010959,2]
[398292057,1765499448254,-1012.04982813,0.00010959,2]
[398292058,1765499448263,-1012.04982813,0.00010959,2]
[398292059,1765499448273,-1012.04982813,0.00010959,2]
[398292060,1765499448282,-1012.04982813,0.00010959,2]
[398292061,1765499448292,-1012.04982813,0.00010959,2]
[398292062,1765499448302,-1012.04982813,0.00010959,2]
[398292063,1765499448312,-1012.04982813,0.00010959,2]
[398292064,1765499448322,-1012.04982813,0.00010959,2]
[398292065,1765499448331,-1012.04982813,0.00010959,2]
[398292066,1765499448341,-1012.04982813,0.00010959,2]
[398292067,1765499448350,-1012.04982813,0.00010959,2]
[398292068,1765499448360,-1012.04982813,0.00010959,2]
[398292069,1765499448369,-1012.04982813,0.00010959,2]
[398292070,1765499448378,-1012.04982813,0.00010959,2]
[398292071,1765499448387,-1012.04982813,0.00010959,2]
[398292072,1765499448396,-1012.04982813,0.00010959,2]
[398292073,1765499448407,-1012.04982813,0.00010959,2]
[398292074,1765499448416,-1012.04982813,0.00010959,2]
[398292075,1765499448426,-1012.04982813,0.00010959,2]
[398292076,1765499448436,-1012.04982813,0.00010959,2]
[398292077,1765499448446,-1012.04982813,0.00010959,2]
[398292078,1765499448455,-656.796385,0.00010959,2]
[398292079,1765499448464,-656.796385,0.00010959,2]
[398292080,1765499448474,-656.796385,0.00010959,2]
[398292081,1765499448484,-656.796385,0.00010959,2]
[398292082,1765499448493,-656.796385,0.00010959,2]
[398292083,1765499448503,-656.796385,0.00010959,2]
[398292084,1765499448513,-656.796385,0.00010959,2]
[398292085,1765499448522,-2186.89149845,0.00010959,2]
[398292086,1765499448533,-656.796385,0.00010959,2]
[398292087,1765499448542,-2186.89149845,0.00010959,2]
[398292088,1765499448551,-2186.89149845,0.00010959,2]
[398292089,1765499448561,-2186.89149845,0.00010959,2]
[398292090,1765499448570,-2186.89149845,0.00010959,2]
[398292091,1765499448579,-2186.89149845,0.00010959,2]
[398292092,1765499448589,-2186.89149845,0.00010959,2]
[398292093,1765499448599,-2186.89149845,0.00010959,2]
[398292094,1765499448608,-2186.89149845,0.00010959,2]
[398292095,1765499448618,-2186.89149845,0.00010959,2]
[398292096,1765499448628,-2186.89149845,0.00010959,2]
[398292097,1765499448637,-2186.89149845,0.00010959,2]
[398292098,1765499448647,-141.0765551,0.00010959,2]
[398292100,1765499825814,400.0,8.782e-05,2]
[398292112,1765500632093,-353.20190781,8.8e-05,2]
[398292114,1765500632102,-154.23,8.8e-05,2]
[398292116,1765500632111,-154.2,8.8e-05,2]
[398292118,1765500632121,-154.23,9.7e-05,2]
[398292120,1765500632130,-417.46753989,0.00010221,2]
[398292122,1765500632140,-379.906,0.00010348,2]
[398292124,1765500632148,-160.0,0.000104,2]